[Event "*** Titled Tuesday Blitz"]
[Site "Chess.com"]
[Date "2018.10.02"]
[Round "1"]
[White "RitvarsReimanis"]
[Black "ruvat"]
[Result "1-0"]
[WhiteElo "2613"]
[BlackElo "2299"]
[TimeControl "180+2"]
[EndTime "13:11:04 PDT"]
[Termination "RitvarsReimanis won on time"]

1. d4 {[%clk 0:03:01.1]} 1... d6 {[%clk 0:03:00.7]} 2. e4 {[%clk 0:02:58.7]}
2... Nf6 {[%clk 0:03:00.7]} 3. f3 {[%clk 0:02:57]} 3... g6 {[%clk 0:02:59.8]} 4.
c4 {[%clk 0:02:57.3]} 4... Bg7 {[%clk 0:03:00.4]} 5. Ne2 {[%clk 0:02:58.5]} 5...
O-O {[%clk 0:03:00]} 6. Nec3 {[%clk 0:02:56.2]} 6... c6 {[%clk 0:02:56.6]} 7.
Be3 {[%clk 0:02:55]} 7... e5 {[%clk 0:02:56.4]} 8. d5 {[%clk 0:02:56.1]} 8...
Nh5 {[%clk 0:02:43.5]} 9. dxc6 {[%clk 0:02:41.9]} 9... bxc6 {[%clk 0:02:38.4]}
10. c5 {[%clk 0:02:43.2]} 10... dxc5 {[%clk 0:01:54.3]} 11. Qxd8 {[%clk
0:02:45.1]} 11... Rxd8 {[%clk 0:01:54]} 12. Nd2 {[%clk 0:02:37.5]} 12... Nf4
{[%clk 0:01:50.5]} 13. g3 {[%clk 0:02:27.1]} 13... Nd3+ {[%clk 0:01:44]} 14.
Bxd3 {[%clk 0:02:28.2]} 14... Rxd3 {[%clk 0:01:45.8]} 15. Ke2 {[%clk 0:02:30.1]}
15... Ba6 {[%clk 0:01:44.2]} 16. Kf2 {[%clk 0:02:29]} 16... Nd7 {[%clk
0:01:39.4]} 17. Rhd1 {[%clk 0:02:27.1]} 17... Rd8 {[%clk 0:01:37.5]} 18. Nb3
{[%clk 0:02:27.5]} 18... Bf8 {[%clk 0:01:21.8]} 19. Rxd3 {[%clk 0:02:25.9]}
19... Bxd3 {[%clk 0:01:23.7]} 20. Rd1 {[%clk 0:02:21.3]} 20... c4 {[%clk
0:01:24.5]} 21. Na5 {[%clk 0:02:22.1]} 21... Nc5 {[%clk 0:01:13.9]} 22. Nxc4
{[%clk 0:02:16.6]} 22... Rb8 {[%clk 0:01:02.3]} 23. Nxe5 {[%clk 0:02:11]} 23...
Rxb2+ {[%clk 0:01:01.6]} 24. Rd2 {[%clk 0:02:12.8]} 24... Rxd2+ {[%clk
0:00:51.6]} 25. Bxd2 {[%clk 0:02:14.7]} 25... Bb5 {[%clk 0:00:36.2]} 26. Ke3
{[%clk 0:01:59.2]} 26... Bg7 {[%clk 0:00:33.5]} 27. f4 {[%clk 0:01:44.4]} 27...
Bxe5 {[%clk 0:00:26.4]} 28. fxe5 {[%clk 0:01:46.3]} 28... Na4 {[%clk 0:00:21.1]}
29. Nd1 {[%clk 0:01:37.7]} 29... Nb6 {[%clk 0:00:19.9]} 30. Kd4 {[%clk
0:01:36.1]} 30... Bc4 {[%clk 0:00:17]} 31. Nc3 {[%clk 0:01:32]} 31... Be6 {[%clk
0:00:16.1]} 32. Bh6 {[%clk 0:01:31.5]} 32... Nd7 {[%clk 0:00:13.9]} 33. Bf4
{[%clk 0:01:14]} 33... Kg7 {[%clk 0:00:12.7]} 34. h4 {[%clk 0:01:12.9]} 34... h6
{[%clk 0:00:13.4]} 35. a3 {[%clk 0:01:14.2]} 35... a6 {[%clk 0:00:12.7]} 36. Na4
{[%clk 0:01:14.9]} 36... c5+ {[%clk 0:00:10.9]} 37. Kc3 {[%clk 0:01:00.8]} 37...
h5 {[%clk 0:00:09.4]} 38. Be3 {[%clk 0:00:55.9]} 38... Kf8 {[%clk 0:00:08.6]}
39. Bxc5+ {[%clk 0:00:55.2]} 39... Ke8 {[%clk 0:00:07.7]} 40. Bd6 {[%clk
0:00:51.3]} 40... Kd8 {[%clk 0:00:07.5]} 41. Kb4 {[%clk 0:00:49.2]} 41... Kc8
{[%clk 0:00:07.5]} 42. Ka5 {[%clk 0:00:48.6]} 42... Kb7 {[%clk 0:00:08.5]} 43.
Nc3 {[%clk 0:00:49.6]} 43... Bc4 {[%clk 0:00:06.3]} 44. Kb4 {[%clk 0:00:48.6]}
44... Bd3 {[%clk 0:00:06.7]} 45. Kb3 {[%clk 0:00:43.6]} 45... Kc6 {[%clk
0:00:06.9]} 46. Kb2 {[%clk 0:00:42.4]} 46... Nc5 {[%clk 0:00:06.9]} 47. Nd5
{[%clk 0:00:37.6]} 47... Bxe4 {[%clk 0:00:05.8]} 48. Nb4+ {[%clk 0:00:37]} 48...
Kb5 {[%clk 0:00:05.5]} 49. Kc3 {[%clk 0:00:38.9]} 49... Na4+ {[%clk 0:00:05.6]}
50. Kd4 {[%clk 0:00:39.5]} 50... Bf5 {[%clk 0:00:07]} 51. Nd5 {[%clk 0:00:40.9]}
51... Be6 {[%clk 0:00:07.2]} 52. Nc7+ {[%clk 0:00:40.7]} 52... Kb6 {[%clk
0:00:07.9]} 53. Ne8 {[%clk 0:00:41.4]} 53... Kc6 {[%clk 0:00:07.8]} 54. Nc7
{[%clk 0:00:41.3]} 54... a5 {[%clk 0:00:07.8]} 55. Ne8 {[%clk 0:00:42]} 55...
Nb6 {[%clk 0:00:07.9]} 56. Nf6 {[%clk 0:00:26.4]} 56... Nd7 {[%clk 0:00:07.7]}
57. Ne4 {[%clk 0:00:25.2]} 57... Nb6 {[%clk 0:00:06.8]} 58. Be7 {[%clk 0:00:25]}
58... Nd7 {[%clk 0:00:06.5]} 59. Bd8 {[%clk 0:00:25.9]} 59... Kb5 {[%clk
0:00:06.4]} 60. Nc3+ {[%clk 0:00:25]} 60... Ka6 {[%clk 0:00:05.7]} 61. Bc7
{[%clk 0:00:25.2]} 61... Bf5 {[%clk 0:00:04.3]} 62. Bd8 {[%clk 0:00:26.3]} 62...
Be6 {[%clk 0:00:05]} 63. Nd5 {[%clk 0:00:27.9]} 63... Kb5 {[%clk 0:00:03.5]} 64.
Nc3+ {[%clk 0:00:29.7]} 64... Ka6 {[%clk 0:00:03.2]} 65. Ne4 {[%clk 0:00:31.6]}
65... Kb5 {[%clk 0:00:03.7]} 66. Be7 {[%clk 0:00:33.5]} 66... Ka6 {[%clk
0:00:04.5]} 67. Nd2 {[%clk 0:00:33.9]} 67... Kb5 {[%clk 0:00:05.4]} 68. Ne4
{[%clk 0:00:35.3]} 68... Ka6 {[%clk 0:00:06.3]} 69. Nc3 {[%clk 0:00:36.9]} 69...
Kb6 {[%clk 0:00:06.5]} 70. Bd8+ {[%clk 0:00:37.5]} 70... Ka6 {[%clk 0:00:07.4]}
71. Bc7 {[%clk 0:00:38.4]} 71... Bf5 {[%clk 0:00:06]} 72. Kd5 {[%clk 0:00:39.1]}
72... Be6+ {[%clk 0:00:06.3]} 73. Kd6 {[%clk 0:00:40.4]} 1-0

[Event "*** Titled Tuesday Blitz"]
[Site "Chess.com"]
[Date "2018.10.02"]
[Round "1"]
[White "Mr_Penings"]
[Black "aquaticpineapples"]
[Result "1-0"]
[WhiteElo "2518"]
[BlackElo "2023"]
[TimeControl "180+2"]
[EndTime "13:11:11 PDT"]
[Termination "Mr_Penings won by resignation"]

1. c4 {[%clk 0:03:00]} 1... e6 {[%clk 0:03:00.7]} 2. g3 {[%clk 0:02:57.3]} 2...
d5 {[%clk 0:03:01.7]} 3. Bg2 {[%clk 0:02:58.6]} 3... Nf6 {[%clk 0:03:02.7]} 4.
Nf3 {[%clk 0:03:00]} 4... Be7 {[%clk 0:03:03.8]} 5. O-O {[%clk 0:03:01.3]} 5...
O-O {[%clk 0:03:04.9]} 6. b3 {[%clk 0:03:02.2]} 6... b6 {[%clk 0:03:05.2]} 7.
Bb2 {[%clk 0:03:03.4]} 7... Bb7 {[%clk 0:03:06.5]} 8. e3 {[%clk 0:03:04.3]} 8...
Nbd7 {[%clk 0:03:07.6]} 9. Nc3 {[%clk 0:03:04.9]} 9... a6 {[%clk 0:03:08]} 10.
Qe2 {[%clk 0:03:02.8]} 10... c5 {[%clk 0:03:06.4]} 11. Rfd1 {[%clk 0:03:00.6]}
11... Qc7 {[%clk 0:03:06.7]} 12. Rac1 {[%clk 0:02:58.7]} 12... Rac8 {[%clk
0:03:06.1]} 13. cxd5 {[%clk 0:02:57.1]} 13... exd5 {[%clk 0:03:06.7]} 14. d4
{[%clk 0:02:58]} 14... Qb8 {[%clk 0:03:07.2]} 15. dxc5 {[%clk 0:02:49.2]} 15...
bxc5 {[%clk 0:03:09.1]} 16. Na4 {[%clk 0:02:50.2]} 16... Rfd8 {[%clk 0:02:58.3]}
17. Nh4 {[%clk 0:02:49.1]} 17... Qa7 {[%clk 0:02:52]} 18. Nf5 {[%clk 0:02:48.3]}
18... Bf8 {[%clk 0:02:52.4]} 19. g4 {[%clk 0:02:40.6]} 19... Ne4 {[%clk
0:02:26.1]} 20. Ba1 {[%clk 0:01:57.8]} 20... g6 {[%clk 0:02:13.9]} 21. Qb2
{[%clk 0:01:57.4]} 21... f6 {[%clk 0:02:08.4]} 22. Nh4 {[%clk 0:00:55.7]} 22...
Ne5 {[%clk 0:01:48.8]} 23. f3 {[%clk 0:00:55.8]} 23... Nd6 {[%clk 0:01:38.9]}
24. Qe2 {[%clk 0:00:48.2]} 24... Ndf7 {[%clk 0:01:34]} 25. f4 {[%clk 0:00:48.7]}
25... Nc6 {[%clk 0:01:27.3]} 26. Rxd5 {[%clk 0:00:44.5]} 26... Nd4 {[%clk
0:01:19.5]} 27. Rxd4 {[%clk 0:00:34.5]} 27... cxd4 {[%clk 0:01:18.9]} 28. Bxd4
{[%clk 0:00:35.4]} 28... Qb8 {[%clk 0:01:17.1]} 29. Bxf6 {[%clk 0:00:33.2]}
29... Rc2 {[%clk 0:01:16.8]} 30. Qxc2 {[%clk 0:00:24]} 30... Rc8 {[%clk
0:01:17]} 31. Qd2 {[%clk 0:00:21.4]} 31... Bxg2 {[%clk 0:01:14.3]} 32. Kxg2
{[%clk 0:00:20.7]} 32... Qb7+ {[%clk 0:01:15]} 33. Nf3 {[%clk 0:00:20.7]} 33...
Re8 {[%clk 0:01:15.1]} 34. Nc5 {[%clk 0:00:20.3]} 34... Qc6 {[%clk 0:01:14.9]}
35. Nd3 {[%clk 0:00:19.6]} 35... Qxf6 {[%clk 0:01:15]} 36. Nde5 {[%clk 0:00:20]}
36... Bg7 {[%clk 0:01:11.9]} 37. Rc6 {[%clk 0:00:19.9]} 37... Qe7 {[%clk
0:01:11.2]} 38. Nxf7 {[%clk 0:00:20.5]} 38... Qxf7 {[%clk 0:01:11.1]} 39. Qd3
{[%clk 0:00:20.8]} 39... Qb7 {[%clk 0:01:10.7]} 40. Qd5+ {[%clk 0:00:21.3]}
40... Kh8 {[%clk 0:01:10.3]} 41. Ng5 {[%clk 0:00:22.6]} 41... Rf8 {[%clk
0:01:07.7]} 42. Kg3 {[%clk 0:00:20.6]} 42... Qa7 {[%clk 0:01:06.5]} 43. Kf2
{[%clk 0:00:18.6]} 43... Rxf4+ {[%clk 0:01:06]} 44. Nf3 {[%clk 0:00:19.7]} 44...
Rf8 {[%clk 0:01:03.7]} 45. Qd6 {[%clk 0:00:19.9]} 45... Qf7 {[%clk 0:01:02.5]}
46. Qg3 {[%clk 0:00:18.7]} 46... Kg8 {[%clk 0:00:55]} 47. Kg2 {[%clk 0:00:18.3]}
47... Be5 {[%clk 0:00:49.2]} 48. Qh3 {[%clk 0:00:11.8]} 48... Qd5 {[%clk
0:00:42.6]} 49. Rc2 {[%clk 0:00:12.5]} 49... Qe4 {[%clk 0:00:40.9]} 50. Re2
{[%clk 0:00:12.2]} 50... Qd3 {[%clk 0:00:37.6]} 51. Rf2 {[%clk 0:00:10.8]} 51...
Qxe3 {[%clk 0:00:35.8]} 52. g5 {[%clk 0:00:11.5]} 52... Bd4 {[%clk 0:00:32.8]}
53. Rf1 {[%clk 0:00:09.2]} 53... Qe2+ {[%clk 0:00:31.5]} 54. Kh1 {[%clk
0:00:10.7]} 54... Qe4 {[%clk 0:00:27.2]} 55. Qg2 {[%clk 0:00:11.6]} 55... Rf4
{[%clk 0:00:24.4]} 56. h3 {[%clk 0:00:10.5]} 56... Bb6 {[%clk 0:00:21.5]} 57.
Kh2 {[%clk 0:00:11.7]} 57... Bc7 {[%clk 0:00:21.5]} 58. Kh1 {[%clk 0:00:13.1]}
58... Bb6 {[%clk 0:00:22.2]} 59. a4 {[%clk 0:00:11.9]} 59... Qe3 {[%clk
0:00:18.6]} 60. Kh2 {[%clk 0:00:08.9]} 60... Qxb3 {[%clk 0:00:18]} 61. Qe2
{[%clk 0:00:07.3]} 61... Qxa4 {[%clk 0:00:16.2]} 62. Qe6+ {[%clk 0:00:08.1]}
62... Kg7 {[%clk 0:00:15.7]} 63. Qxb6 {[%clk 0:00:09.2]} 63... Qc2+ {[%clk
0:00:14.9]} 64. Rf2 {[%clk 0:00:10.5]} 64... Qf5 {[%clk 0:00:14.2]} 65. Qc7+
{[%clk 0:00:11.1]} 65... Kg8 {[%clk 0:00:14.8]} 66. Qd8+ {[%clk 0:00:11.8]}
66... Kg7 {[%clk 0:00:15.3]} 67. Qe7+ {[%clk 0:00:13]} 67... Kg8 {[%clk
0:00:15.7]} 68. Rd2 {[%clk 0:00:13.1]} 68... Qf8 {[%clk 0:00:10.7]} 69. Rd8
{[%clk 0:00:14.1]} 69... Rxf3 {[%clk 0:00:10]} 70. Rxf8+ {[%clk 0:00:14.4]}
70... Rxf8 {[%clk 0:00:11.9]} 71. Qe6+ {[%clk 0:00:15.7]} 71... Kg7 {[%clk
0:00:12.9]} 72. Qxa6 {[%clk 0:00:17.6]} 72... Rf7 {[%clk 0:00:14.2]} 73. Qe6
{[%clk 0:00:17.9]} 73... Rf8 {[%clk 0:00:15.4]} 74. Kg3 {[%clk 0:00:18.9]} 74...
Rf7 {[%clk 0:00:16.1]} 75. Kg4 {[%clk 0:00:20.1]} 75... Rf8 {[%clk 0:00:17.5]}
76. Qe7+ {[%clk 0:00:21.4]} 76... Rf7 {[%clk 0:00:18.8]} 77. Qe5+ {[%clk
0:00:22.7]} 77... Kg8 {[%clk 0:00:19.5]} 78. h4 {[%clk 0:00:24.1]} 78... Rf8
{[%clk 0:00:19.9]} 79. h5 {[%clk 0:00:24.7]} 79... gxh5+ {[%clk 0:00:20.9]} 80.
Kxh5 {[%clk 0:00:26.6]} 80... Rf7 {[%clk 0:00:22.1]} 81. Kh6 {[%clk 0:00:27.4]}
81... Kf8 {[%clk 0:00:19.1]} 82. Qd6+ {[%clk 0:00:26.4]} 82... Kg8 {[%clk
0:00:19.8]} 83. Qe6 {[%clk 0:00:26.2]} 83... Kf8 {[%clk 0:00:19.8]} 84. Qxf7+
{[%clk 0:00:26.9]} 84... Kxf7 {[%clk 0:00:20.7]} 85. Kxh7 {[%clk 0:00:28.8]} 1-0

[Event "*** Titled Tuesday Blitz"]
[Site "Chess.com"]
[Date "2018.10.02"]
[Round "1"]
[White "WPWPWP-2015"]
[Black "plouarzel"]
[Result "1/2-1/2"]
[WhiteElo "2293"]
[BlackElo "2599"]
[TimeControl "180+2"]
[EndTime "13:13:22 PDT"]
[Termination "Game drawn by agreement"]

1. e4 {[%clk 0:02:57.2]} 1... d6 {[%clk 0:03:00.1]} 2. d4 {[%clk 0:02:57.3]}
2... Nf6 {[%clk 0:02:59.9]} 3. Nc3 {[%clk 0:02:58.1]} 3... e5 {[%clk 0:03:00.7]}
4. Nf3 {[%clk 0:02:57.6]} 4... Nbd7 {[%clk 0:03:01.5]} 5. Bc4 {[%clk 0:02:57.9]}
5... exd4 {[%clk 0:03:02]} 6. Nxd4 {[%clk 0:02:56.8]} 6... Nb6 {[%clk
0:03:03.2]} 7. Bb3 {[%clk 0:02:55]} 7... c5 {[%clk 0:03:04.4]} 8. Nf3 {[%clk
0:02:41]} 8... c4 {[%clk 0:03:05.4]} 9. Ba4+ {[%clk 0:02:40.3]} 9... Nxa4 {[%clk
0:03:07]} 10. Nxa4 {[%clk 0:02:41]} 10... Nxe4 {[%clk 0:03:08.7]} 11. Qd5 {[%clk
0:02:20.9]} 11... Nc5 {[%clk 0:03:06.7]} 12. Nxc5 {[%clk 0:02:03.4]} 12... Qa5+
{[%clk 0:03:07.5]} 13. Bd2 {[%clk 0:02:01.8]} 13... Qxc5 {[%clk 0:03:08.3]} 14.
Qxc5 {[%clk 0:02:00.9]} 14... dxc5 {[%clk 0:03:10.2]} 15. O-O-O {[%clk
0:01:57.4]} 15... f6 {[%clk 0:03:10.2]} 16. Rhe1+ {[%clk 0:01:55.9]} 16... Kf7
{[%clk 0:03:11.3]} 17. Bf4 {[%clk 0:01:51.6]} 17... Be6 {[%clk 0:03:04.1]} 18.
Nd2 {[%clk 0:01:44.7]} 18... Be7 {[%clk 0:02:46.1]} 19. Ne4 {[%clk 0:01:42.9]}
19... Rhd8 {[%clk 0:02:44.8]} 20. Nd6+ {[%clk 0:01:21]} 20... Bxd6 {[%clk
0:02:45.1]} 21. Bxd6 {[%clk 0:01:17]} 21... b6 {[%clk 0:02:42.5]} 22. Bf4 {[%clk
0:01:12.6]} 22... c3 {[%clk 0:02:38.5]} 23. b3 {[%clk 0:01:09.2]} 23... Bd5
{[%clk 0:02:03.5]} 24. f3 {[%clk 0:01:05.8]} 24... Bc6 {[%clk 0:02:04.5]} 25.
Bg3 {[%clk 0:01:01.2]} 25... h5 {[%clk 0:02:01.7]} 26. Rxd8 {[%clk 0:01:00.7]}
26... Rxd8 {[%clk 0:02:02.2]} 27. Rd1 {[%clk 0:01:01.7]} 27... Re8 {[%clk
0:01:55.4]} 28. Re1 {[%clk 0:01:02.5]} 28... Rd8 {[%clk 0:01:55.6]} 29. Rd1
{[%clk 0:01:03.4]} 29... Rh8 {[%clk 0:01:48.3]} 30. h3 {[%clk 0:01:02]} 30...
Rh6 {[%clk 0:01:33.1]} 31. Rd6 {[%clk 0:00:52.9]} 31... Rg6 {[%clk 0:01:32.7]}
32. Be1 {[%clk 0:00:52.5]} 32... Bb5 {[%clk 0:01:20.3]} 33. g3 {[%clk
0:00:42.7]} 33... h4 {[%clk 0:01:20.6]} 34. g4 {[%clk 0:00:37.8]} 34... Rh6
{[%clk 0:01:08.4]} 35. Bxc3 {[%clk 0:00:36.7]} 35... Bf1 {[%clk 0:01:08.5]} 36.
g5 {[%clk 0:00:32]} 36... fxg5 {[%clk 0:01:03.5]} 37. Rd7+ {[%clk 0:00:32.6]}
37... Ke6 {[%clk 0:01:02.7]} 38. Rxg7 {[%clk 0:00:32.4]} 38... Kf5 {[%clk
0:01:00.8]} 39. Rf7+ {[%clk 0:00:30.8]} 39... Ke6 {[%clk 0:01:02.3]} 40. Rg7
{[%clk 0:00:29.4]} 40... Bxh3 {[%clk 0:00:58.3]} 41. Rxg5 {[%clk 0:00:30.3]}
41... Bf5 {[%clk 0:00:59.8]} 42. Rg2 {[%clk 0:00:26.6]} 42... h3 {[%clk
0:00:59.2]} 43. Rh2 {[%clk 0:00:25]} 43... Rg6 {[%clk 0:01:00.7]} 44. Bd2 {[%clk
0:00:26]} 44... Ke5 {[%clk 0:00:58.6]} 45. Re2+ {[%clk 0:00:26]} 45... Kd5
{[%clk 0:00:53]} 46. Bf4 {[%clk 0:00:26.8]} 46... Kc6 {[%clk 0:00:45.5]} 47. c4
{[%clk 0:00:25.9]} 47... Bd7 {[%clk 0:00:34.2]} 48. Kd2 {[%clk 0:00:26.4]} 48...
Rf6 {[%clk 0:00:30.4]} 49. Ke3 {[%clk 0:00:26.6]} 49... Re6+ {[%clk 0:00:30.4]}
50. Kf2 {[%clk 0:00:27.7]} 50... Rf6 {[%clk 0:00:32]} 51. Be5 {[%clk 0:00:26.5]}
51... Rg6 {[%clk 0:00:32.1]} 52. Bg3 {[%clk 0:00:27.3]} 52... Bf5 {[%clk
0:00:29.3]} 53. Rd2 {[%clk 0:00:26.2]} 53... a6 {[%clk 0:00:29.3]} 54. Re2
{[%clk 0:00:24.4]} 54... b5 {[%clk 0:00:30.2]} 55. cxb5+ {[%clk 0:00:21.8]}
55... axb5 {[%clk 0:00:32.1]} 56. Re5 {[%clk 0:00:21.9]} 56... Bd3 {[%clk
0:00:29.7]} 57. Rh5 {[%clk 0:00:22.4]} 57... Re6 {[%clk 0:00:26.8]} 58. Rxh3
{[%clk 0:00:22.2]} 58... Re2+ {[%clk 0:00:27.8]} 59. Kg1 {[%clk 0:00:23.2]}
59... Rxa2 {[%clk 0:00:29.2]} 60. Rh6+ {[%clk 0:00:24]} 60... Kb7 {[%clk
0:00:25.6]} 61. Bf2 {[%clk 0:00:24.1]} 61... c4 {[%clk 0:00:24.4]} 62. Rb6+
{[%clk 0:00:21.2]} 62... Ka8 {[%clk 0:00:21.6]} 63. Rxb5 {[%clk 0:00:22]} 63...
c3 {[%clk 0:00:23]} 64. Rc5 {[%clk 0:00:21.7]} 64... c2 {[%clk 0:00:24.4]} 65.
Be3 {[%clk 0:00:22.9]} 65... Ra1+ {[%clk 0:00:25.9]} 66. Kf2 {[%clk 0:00:23.4]}
66... Rf1+ {[%clk 0:00:27.5]} 67. Kg3 {[%clk 0:00:24.5]} 67... Re1 {[%clk
0:00:28.2]} 68. Bf4 {[%clk 0:00:25.2]} 68... Rg1+ {[%clk 0:00:28.5]} 69. Kf2
{[%clk 0:00:26]} 69... Rf1+ {[%clk 0:00:29.7]} 70. Kg3 {[%clk 0:00:25.7]} 70...
Kb7 {[%clk 0:00:28.2]} 71. b4 {[%clk 0:00:25.2]} 71... Kb6 {[%clk 0:00:28.6]}
72. Rc3 {[%clk 0:00:25.9]} 72... Bf5 {[%clk 0:00:27.7]} 73. Rc5 {[%clk
0:00:26.3]} 73... Bd3 {[%clk 0:00:27.3]} 74. Be3 {[%clk 0:00:27.1]} 74... Kb7
{[%clk 0:00:27.7]} 75. f4 {[%clk 0:00:26.4]} 75... Re1 {[%clk 0:00:28.2]} 76.
Kf2 {[%clk 0:00:26.2]} 76... Rf1+ {[%clk 0:00:29.4]} 77. Kg3 {[%clk 0:00:27.4]}
77... Re1 {[%clk 0:00:31.3]} 78. Kf3 {[%clk 0:00:27.4]} 78... Rb1 {[%clk
0:00:29.2]} 79. Rc3 {[%clk 0:00:26.9]} 79... Bf5 {[%clk 0:00:28.2]} 80. Rc5
{[%clk 0:00:26.7]} 80... Bd3 {[%clk 0:00:28.9]} 81. Rc3 {[%clk 0:00:26.9]} 81...
Bg6 {[%clk 0:00:29.9]} 82. Rc5 {[%clk 0:00:22.6]} 82... Rxb4 {[%clk 0:00:28]}
83. f5 {[%clk 0:00:21.9]} 83... Bh5+ {[%clk 0:00:28.2]} 84. Kf2 {[%clk
0:00:21.7]} 84... Rb2 {[%clk 0:00:23.7]} 85. Bc1 {[%clk 0:00:20.8]} 85... Ra2
{[%clk 0:00:22.7]} 86. f6 {[%clk 0:00:20.3]} 86... Bf7 {[%clk 0:00:22]} 87. Ke3
{[%clk 0:00:20.9]} 87... Kb6 {[%clk 0:00:22.9]} 88. Rc3 {[%clk 0:00:21.5]} 88...
Bg6 {[%clk 0:00:21.6]} 89. Kf4 {[%clk 0:00:21.8]} 89... Ra5 {[%clk 0:00:22.1]}
90. Be3+ {[%clk 0:00:21.8]} 90... Kb7 {[%clk 0:00:22.5]} 91. Kg3 {[%clk
0:00:17.9]} 91... Rf5 {[%clk 0:00:21.9]} 92. Rxc2 {[%clk 0:00:16.8]} 92... Rxf6
{[%clk 0:00:19.9]} 93. Rb2+ {[%clk 0:00:17.7]} 93... Kc7 {[%clk 0:00:20.6]} 94.
Rb6 {[%clk 0:00:17.2]} 94... Rc6 {[%clk 0:00:14.1]} 95. Rxc6+ {[%clk 0:00:11.5]}
95... Kxc6 {[%clk 0:00:16]} 96. Kf4 {[%clk 0:00:12.4]} 96... Kd5 {[%clk
0:00:16.1]} 97. Kg3 {[%clk 0:00:13.8]} 97... Ke4 {[%clk 0:00:17.1]} 98. Bf4
{[%clk 0:00:15.4]} 98... Bh5 {[%clk 0:00:17.7]} 99. Bb8 {[%clk 0:00:17]} 99...
Bf3 {[%clk 0:00:18.4]} 100. Bc7 {[%clk 0:00:18.6]} 100... Bh1 {[%clk 0:00:18.8]}
101. Bf4 {[%clk 0:00:20.2]} 101... Kf5 {[%clk 0:00:19.9]} 102. Bb8 {[%clk
0:00:21.8]} 102... Kg6 {[%clk 0:00:21.3]} 103. Bf4 {[%clk 0:00:23.3]} 103... Kf7
{[%clk 0:00:22.4]} 104. Bb8 {[%clk 0:00:24.9]} 104... Ba8 {[%clk 0:00:22.1]}
105. Ba7 {[%clk 0:00:26.5]} 105... Bb7 {[%clk 0:00:16.7]} 106. Bb8 {[%clk
0:00:28]} 106... Ba8 {[%clk 0:00:15.9]} 107. Ba7 {[%clk 0:00:29.6]} 107... Bg2
{[%clk 0:00:17.4]} 108. Bb8 {[%clk 0:00:30.8]} 108... Ke6 {[%clk 0:00:18.4]}
109. Ba7 {[%clk 0:00:32.1]} 109... Kd5 {[%clk 0:00:19.8]} 110. Bb8 {[%clk
0:00:33.4]} 110... Kc6 {[%clk 0:00:21.7]} 111. Ba7 {[%clk 0:00:34.6]} 111... Kb7
{[%clk 0:00:23.6]} 112. Bf2 {[%clk 0:00:35.4]} 1/2-1/2